Workbook

Sheet @

Sheet Datos de entrada
B2: Ayuda para el correcto uso de la herramienta: Completar solamente las celdas que estan en color blanco. Posicionando el mouse sobre la celda de interés encontrará ayuda. Completar deslizando hacia abajo. Seleccione sobre los botones del Menú de Opciones para continuar. Para salir de la visualización de pantalla completa presione Esc
B5: Generación de Estiércol | BA5: Tipo de Agua | BB5: Estimación Volumen Lavado de Pisos | BD5: Destino Lag 1 | BE5: Destino Lag 2 | BF5: Destino Lag 3 | BH5: =+B109 -> Seleccione Cirterio de Diseño | BI5: =+B147 -> Seleccione una opción | BL5: Parámetro Lavado Pisos | BM5: Parámetro Diseño | BQ5: Volumen m3 | BR5: prof
B6: Vacas en Ordeñe | C6: Cabezas promedio | D6: Producción (L/V.O.día) | E6: Días al año | F6: Tiempo sobre pisos (h/día) | I6: Producción de Estiércol (KgMF/día) | J6: Producción de Estiércol (m3/año) | K6: Producción de Estiércol (KgMS/año) | L6: N excretado (Kg/año) | M6: P excretado (Kg/año) | BC6: Limpia | BD6: Estimativo (por cabeza) | BF6: Laguna 2 | BG6: Laguna 3 | BH6: Aplicación al Suelo | BI6: Cargar dimensiones manualmente | BJ6: 1 | BK6: Tamiz Estático | BM6: 3 | BN6: 1 | BO6: Cargar dimensiones manualmente | BP6: Laguna 1 | BQ6: =2.28*'Datos de entrada'!$C$14 -> 798 | BR6: =+IF('Datos de entrada'!$C$14<250,3,4) -> 4
B7: Rodeo 1 | C7: 200 | D7: 23 | E7: 365 | F7: 1.5 | I7: =+(46.2+D7*0.616)*C7*F7/16 -> 1131.9 | J7: =+I7*E7/(1000*0.954) -> 433.0644654 | K7: =(5.6+D7*0.0874)*F7/16*C7*E7 -> 52082.30625 | L7: =(D7*0.0028+0.346)*C7*E7*F7/16 -> 2808.675 | M7: =(0.05+0.000781*D7)*C7*E7*F7/16 -> 465.1217813 | BC7: Tratada (reutilización) | BD7: Medido (caudal y tiempo) | BF7: Aplicación al suelo | BG7: Aplicación al Suelo | BH7: Vuelco | BI7: Dimensionar en función de días de almacenamiento | BJ7: 2 | BK7: Sin Separación de Sólidos | BN7: 2 | BO7: Dimensionar en función de días de almacenamiento | BP7: Laguna 2 | BQ7: =1.44*'Datos de entrada'!$C$14 -> 504 | BR7: 1.5
B8: Rodeo 2 | C8: 150 | D8: 17 | E8: 365 | F8: 1.5 | I8: =+(46.2+D8*0.616)*C8*F8/16 -> 796.95 | J8: 304.9127358 | K8: =(5.6+D8*0.0874)*F8/16*C8*E8 -> 36370.08281 | L8: =(D8*0.0028+0.346)*C8*E8*F8/16 -> 2020.275 | M8: =(0.05+0.000781*D8)*C8*E8*F8/16 -> 324.7889766 | BF8: Vuelco | BG8: Vuelco | BI8: Dimensionar para reutilización (INTA Rafaela) | BN8: 3 | BO8: Dimensionar para reutilización (INTA Rafaela) | BP8: Laguna 3 | BQ8: =1.44*'Datos de entrada'!$C$14 -> 504 | BR8: 1.5
B9: Rodeo … | I9: 0 | J9: 0 | K9: 0 | L9: 0 | M9: 0
B10: Rodeo … | I10: 0 | J10: 0 | K10: 0 | L10: 0 | M10: 0 | BJ10: 2 | BK10: 2 | BN10: =+VLOOKUP(BN11,BN6:BO8,2,FALSE) -> Dimensionar para reutilización (INTA Rafaela)
B11: Rodeo … | I11: 0 | J11: 0 | K11: 0 | L11: 0 | M11: 0 | BN11: 3
B12: Rodeo … | I12: 0 | J12: 0 | K12: 0 | L12: 0 | M12: 0
B13: Rodeo … | I13: 0 | J13: 0 | K13: 0 | L13: 0 | M13: 0
B14: Subtotal | C14: =+SUMPRODUCT(C7:C13,E7:E13)/365 -> 350 | D14: =+SUMPRODUCT(D7:D13,C7:C13,E7:E13)/(365*C14) -> 20.42857143 | I14: =+SUM(I7:I13) -> 1928.85 | J14: =+SUM(J7:J13) -> 737.9772013 | K14: =+SUM(K7:K13) -> 88452.38906 | L14: =+SUM(L7:L13) -> 4828.95 | M14: =+SUM(M7:M13) -> 789.9107578
B15: Vaquillonas Recría | C15: Cabezas promedio | D15: Días al año | E15: Peso Vivo Promedio | F15: Digestibilidad promedio de la dieta | G15: Proteína de la Dieta %MS | H15: Tiempo sobre pisos (h/día) | I15: Producción de Estiércol (KgMF/día) | J15: Producción de Estiércol (m3MF/año) | K15: Producción de Estiércol (KgMS/año) | L15: N excretado (Kg/año) | M15: P excretado (Kg/año)
B16: Recría a Corral | D16: 365 | H16: 24 | I16: =IF(H16<16,(E16*0.0181+17.817)*C16*H16/16,(E16*0.0181+17.817)*C16) -> 0 | J16: =+I16*D16/(0.954*1000) -> 0 | K16: =+E16*0.03*(1-F16)*C16*D16*H16/16 -> 0 | L16: =IF(H16<16,(E16*0.03*G16*0.0789+0.0514)*C16*D16*H16/16,(E16*0.03*G16*0.0789+0.0514)*C16*D16) -> 0 | M16: =+L16*0.17 -> 0
B17: Rodeo… | D17: 365 | H17: 24 | I17: =IF(H17<16,(E17*0.018+17.817)*C17*H17/16,(E17*0.018+17.817)*C17) -> 0 | J17: 0 | K17: 0 | L17: =IF(H17<16,(E17*0.03*G17*0.0789+0.0514)*C17*D17*H17/16,(E17*0.03*G17*0.0789+0.0514)*C17*D17) -> 0 | M17: =+L17*0.17 -> 0
B18: Rodeo… | D18: 365 | H18: 24 | I18: 0 | J18: 0 | K18: 0 | L18: 0 | M18: 0
B19: Rodeo… | D19: 365 | H19: 24 | I19: 0 | J19: 0 | K19: 0 | L19: 0 | M19: 0
B20: Rodeo… | D20: 365 | H20: 24 | I20: 0 | J20: 0 | K20: 0 | L20: 0 | M20: 0
B21: Rodeo… | D21: 365 | H21: 24 | I21: 0 | J21: 0 | K21: 0 | L21: 0 | M21: 0
B22: Rodeo… | D22: 365 | H22: 24 | I22: 0 | J22: 0 | K22: 0 | L22: 0 | M22: 0
B23: Subtotal | I23: =+SUM(I16:I22) -> 0 | J23: =+SUM(J16:J22) -> 0 | K23: =+SUM(K16:K22) -> 0 | L23: =+SUM(L16:L22) -> 0 | M23: 0
B25: Total | I25: =+I14+I23 -> 1928.85 | J25: =+J14+J23 -> 737.9772013 | K25: =+K14+K23 -> 88452.38906 | L25: =+L23+L14 -> 4828.95 | M25: =+M23+M14 -> 789.9107578
B27: Aporte Pluvial
B28: Techo/piso | C28: Superficie en m2 (a) | D28: Proporción (%) del techo que aporta al efluente (b)
B29: Sala de Ordeñe | C29: 0 | D29: 1
B30: Corral de Espera con Techo | C30: 0 | D30: 1
B31: manga tratamientos | C31: 0 | D31: 1
B32: pisos externos | C32: 0 | D32: 1
B33: … | C33: 0 | D33: 1
B34: … | C34: 0 | D34: 1
B35: … | C35: 0 | D35: 1
B36: … | C36: 0 | D36: 1
B37: … | C37: 0 | D37: 1
B38: … | C38: 0 | D38: 1
B39: … | C39: 0 | D39: 1
B40: … | C40: 0 | D40: 1
B41: Total Área Equivalente | C41: =+SUMPRODUCT(C29:C40,D29:D40) -> 0
B43: PP anual media (mm) | C43: 900
B44: pp anual de diseño (mm) | C44: 1200
B45: Ev anual media (mm) | C45: 700
B46: Balance Hídrico | C46: =+C43-C45/2 -> 550
B47: Balance Hídrico Máx | C47: =+C44-C45/2 -> 850
B49: Aporte Pluvial medio | C49: =+C41*C43/1000 -> 0 | D49: m3/año
B50: Aporte Pluvial Máx | C50: =+C44/1000*C41 -> 0 | D50: m3/año
B52: Lavado de Pisos
B53: Elija una opción:
C56: L de agua/V.O.día | D56: 15
C57: Días al año | D57: 365
C58: Reutilización | D58: 0
C59: Total L/día | D59: =+D56*C14 -> 5250
C60: Total Agua Limpia L/día | D60: =+D59*(1-D58) -> 5250
C61: Total Agua tratada m3/año | D61: =+D59*D58 -> 0
C62: Total Agua Limpia m3/año | D62: =+D60*D57/1000 -> 1916.25
C64: Piso | D64: caudal manguera (L/h) | E64: tiempo/lavado (minutos) | F64: Lavados/día | G64: Días/año | H64: Tipo de Agua | I64: Total L/día | J64: m3/año | K64: L/cab.día
C65: Sala de Ordeñe | D65: 3600 | E65: 20 | F65: 2 | G65: 365 | H65: Limpia | I65: =+E65/60*D65*F65 -> 2400 | J65: =+D65*E65/60*F65*G65/1000 -> 876 | K65: =+I65/$C$14 -> 6.857142857
C66: Corral de Espera | D66: 15000 | E66: 7 | F66: 2 | G66: 365 | H66: Limpia | I66: =+E66/60*D66*F66 -> 3500 | J66: =+D66*E66/60*F66*G66/1000 -> 1277.5 | K66: =+I66/$C$14 -> 10
C67: … | I67: 0 | J67: 0 | K67: =+I67/$C$14 -> 0
C68: … | I68: 0 | J68: 0
C69: … | I69: 0 | J69: 0
C70: … | I70: 0 | J70: 0
C71: … | I71: 0 | J71: 0
C72: … | I72: 0 | J72: 0
H73: Total | I73: =+SUM(I65:I72) -> 5900 | J73: =+SUM(J65:J72) -> 2153.5 | K73: =+I73/$C$14 -> 16.85714286
H74: Total Reutilizado | I74: =+SUMIF(H65:H72,BC7,I65:I72) -> 0 | J74: =+SUMIF(H65:H72,BC7,J65:J72) -> 0 | K74: =+I74/$C$14 -> 0
H75: Total Limpia | I75: =+I73-I74 -> 5900 | J75: =+J73-J74 -> 2153.5 | K75: =+I75/$C$14 -> 16.85714286
C76: Lavado de Maquina de Ordeño
C77: Unidades de Ordeño | D77: 10
C78: Días/año | D78: 365
C79: L/día | D79: =27.75*D77+134.4 -> 411.9
C80: m3/año | D80: =+D79*365/1000 -> 150.3435
C82: Lavado de Equipo de Frío
C83: Capacidad del Tanque (L) | D83: 11000
C84: Volumen de cada Lavado (L) | D84: =0.045*D83 -> 495
C85: Tiempo entre lavados (hs) | D85: 48
C86: m3/año | D86: =+D84*365*24/(D85*1000) -> 90.3375
C88: Refrescado de Leche
C89: Caudal (L/h) | D89: 1500
C90: Tiempo por ordeñe (min) | D90: 90
C91: Ordeñes/día | D91: 2
C92: Días/año | D92: 365
C93: % reutilización refrescado | D93: 0.5
C94: L/día | D94: =+D89/60*D90*D91*(1-D93) -> 2250
C95: m3/año | D95: =+D94*D92/1000 -> 821.25
C96: L.agua / L.leche | D96: =(D89/60*D90*D91)/(C14*D14) -> 0.6293706294
B98: Volumen Anual de Efluente Líquido Primario | C98: TOTAL | G98: Valores Objetivo
C99: m3/año | D99: m3/año máx | E99: L/día | F99: L/V.O.día
B100: Excretas | C100: =+J25 -> 737.9772013 | D100: =+C100 -> 737.9772013 | E100: =+I25 -> 1928.85 | F100: =+E100/$C$14 -> 5.511 | G100: =+F100 -> 5.511
B101: Agua de lluvia | C101: =+C49 -> 0 | D101: =+C50 -> 0 | E101: =+C101*1000/365 -> 0 | F101: =+E101/$C$14 -> 0 | G101: 0
B102: Agua de Lavado de Pisos | C102: =+IF(BJ10=2,J75,IF(BJ10=1,D62,"error")) -> 2153.5 | D102: =+C102 -> 2153.5 | E102: =IF(BJ10=2,I75,IF(BJ10=1,D60,"error")) -> 5900 | F102: =+E102/$C$14 -> 16.85714286 | G102: 18
B103: Lavado de Máquina de Ordeño y Equipo de Frío | C103: =+D80+D86 -> 240.681 | D103: =+C103 -> 240.681 | E103: =+D103*1000/365 -> 659.4 | F103: =+E103/$C$14 -> 1.884 | G103: =+F103 -> 1.884
B104: Refrescado de Leche | C104: =+D95 -> 821.25 | D104: =+C104 -> 821.25 | E104: =+D94 -> 2250 | F104: =+E104/$C$14 -> 6.428571429 | G104: 0
B105: Total | C105: =+SUM(C100:C104) -> 3953.408201 | D105: =+SUM(D100:D104) -> 3953.408201 | E105: =+SUM(E100:E104) -> 10738.25 | F105: =+SUM(F100:F104) -> 30.68071429
B108: Diseño de Lagunas
B109: Seleccione Cirterio de Diseño
B113: Tiempo de Almacenamiento | C113: 0 | D113: =+IF(C113<30, "Riesgo microbiológico alto. Se recomienda aumentar el tiempo de almacenamiento","") -> Riesgo microbiológico alto. Se recomienda aumentar el tiempo de almacenamiento
C115: Laguna 1
B116: Volumen total Laguna (m3) | C116: =+(D105/365)*C113 -> 0
B117: ancho (m) | C117: 12
B118: prof (m) | C118: 3
B119: largo (m) | C119: =+C116/(C117*C118) -> 0
B120: superficie | C120: =+C119*C117 -> 0
C122: Laguna 1 | D122: Laguna 2 | E122: Laguna 3 | F122: Tiempo de Almacenamiento | G122: =(1000*(C124*C125*C126+D124*D125*D126+E124*E125*E126))/E105 -> 199.6600936 | H122: días
B123: Volumen total de Laguna (m3) | C123: =+C124*C125*C126 -> 660 | D123: =+D124*D125*D126 -> 840 | E123: =+E124*E125*E126 -> 644
B124: ancho (m) | C124: 6 | D124: 8 | E124: 8 | F124: =IF(G122>30,"","Riesgo microbiológico alto. Se recomienda aumentar capacidad de lagunas o reducir consumo de agua") -> 
B125: prof (m) | C125: 5.5 | D125: 3.5 | E125: 3.5
B126: largo (m) | C126: 20 | D126: 30 | E126: 23
B127: superficie | C127: =+C126*C124 -> 120 | D127: =+D126*D124 -> 240 | E127: =+E126*E124 -> 184
C130: Laguna 1 | D130: Laguna 2 | E130: Laguna 3
B131: Volumen total Laguna (m3) | C131: =+C132*C133*C134 -> 798 | D131: =+D132*D133*D134 -> 504 | E131: =+E132*E133*E134 -> 504
B132: ancho (m) | C132: 6 | D132: 8 | E132: 8
B133: prof (m) | C133: =+'Datos de entrada'!BR6 -> 4 | D133: =+'Datos de entrada'!BR7 -> 1.5 | E133: =+'Datos de entrada'!BR8 -> 1.5
B134: largo (m) | C134: =+'Datos de entrada'!BQ6/('Datos de entrada'!C132*'Datos de entrada'!C133) -> 33.25 | D134: =+'Datos de entrada'!BQ7/('Datos de entrada'!D132*'Datos de entrada'!D133) -> 42 | E134: =+'Datos de entrada'!BQ8/('Datos de entrada'!E132*'Datos de entrada'!E133) -> 42
B135: superficie | C135: =+C134*C132 -> 199.5 | D135: =+D134*D132 -> 336 | E135: =+E134*E132 -> 336
B140: Corrección por Balance Hídrico Lagunas (m3) | C140: =+IF(BN10=BI6,SUM(C127:E127),IF(BN10=BI7,C120,IF(BN10=BI8,SUM(C135:E135),"error")))*C46/1000 -> 479.325 | D140: m3
B141: Aplicación de Líquidos | C141: m3/año | D141: L/V.O.día
B142: Volumen a aplicar | C142: =+C140+C105 -> 4432.733201 | D142: =+C142*1000/(365*C14) -> 34.69849864
B146: Separación de sólidos
B147: Seleccione una opción
B150: Proporción de retención de sólidos (%) | C150: 0.21
B151: Volumen Anual Sólidos (Kg MS) | C151: =IF(BK10=BJ7,0,K25*C150) -> 0
B153: Aplicación de Sólidos
B154: Contenido MS al momento de aplicar | C154: 0.35
B155: Volumen Anual Sólidos a aplicar (Kg) | C155: =+C151/C154 -> 0
B158: Aporte de Nutrientes
B159: Pérdida de Volatilización de Nitrógeno | C159: 0.4
B160: N aprovechado (Kg/año) | C160: =+L25*(1-C159) -> 2897.37 | E160: Líquidos Totales | F160: =+C105 -> 3953.408201
B161: P Aprovechado (Kg/año) | C161: =+M25 -> 789.9107578 | E161: Líquidos | F161: =+F160-F162 -> 3953.408201
B162: Equivalencia MAP (Kg/año) | C162: =+C161/(0.436*0.52) -> 3484.080618 | E162: Sólidos Retenidos (MS) | F162: =+C151/1000 -> 0
B163: Equivalencia UREA (Kg/año) | C163: =+(C160-C162*0.12)/0.46 -> 5389.739839 | E163: Sólidos Pasantes (MS) | F163: =+K25/1000-F162 -> 88.45238906

Sheet Costos y Resultados
B2: Ayuda para el correcto uso de la herramienta: Completar solamente las celdas que estan en color blanco. Posicionando el mouse sobre la celda de interés encontrará ayuda. Completar deslizando hacia abajo. Seleccione sobre los botones del Menú de Opciones para continuar. Para salir de la visualización de pantalla completa presione Esc
B4: COSTOS OPERATIVOS | C4: Unidades | D4: Costo Unitario | E4: Total (USD/año)
B5: Energía Eléctrica (kWh) | C5: =+IF('Datos de entrada'!BK10='Datos de entrada'!BJ6,'Datos de entrada'!C100+'Datos de entrada'!D62*1000/3000,0) -> 0 | D5: 0.2 | E5: =+D5*C5 -> 0
B6: Servicio tanque estercolero (m3) | C6: =+'Datos de entrada'!C142 -> 4432.733201 | D6: 3 | E6: =+D6*C6 -> 13298.1996
B7: Servicio carro esparcidor de sólidos (ton) | C7: =+'Datos de entrada'!C155/1000 -> 0 | D7: 12 | E7: =+D7*C7 -> 0
B8: Total | E8: =+SUM(E5:E7) -> 13298.1996
B11: AHORRO EN FERTILIZANTES | C11: Unidades | D11: Precio Unitario | E11: Total (USD/año)
B12: Urea | C12: =+'Datos de entrada'!C163 -> 5389.739839 | D12: 0.57 | E12: =+D12*C12 -> 3072.151708
B13: Fosfato Monoamónico | C13: =+'Datos de entrada'!C162 -> 3484.080618 | D13: 0.68 | E13: =+D13*C13 -> 2369.174821
B14: Total | E14: =+SUM(E12:E13) -> 5441.326529
B17: Costos Operativos Netos USD/año | E17: =+E8-E14 -> 7856.873075
B18: Costos Operativos Netos USD/V.O.año | E18: =+E17/'Datos de entrada'!C14 -> 22.44820879
B21: INVERSIONES EN LAGUNAS | C21: Costo Unitario (USD) | D21: =CONCATENATE('Datos de entrada'!C122," (m3)") -> Laguna 1 (m3) | E21: =CONCATENATE('Datos de entrada'!D122," (m3)") -> Laguna 2 (m3) | F21: =CONCATENATE('Datos de entrada'!E122," (m3)") -> Laguna 3 (m3)
B22: Movimiento de tierra (m3) | C22: 8.24 | D22: =IF('Datos de entrada'!BN10='Datos de entrada'!BI6,'Datos de entrada'!C124*'Datos de entrada'!C126*('Datos de entrada'!C125-0.7),IF('Datos de entrada'!BN10='Datos de entrada'!BI7,'Datos de entrada'!C117*'Datos de entrada'!C119*('Datos de entrada'!C118-0.7),IF('Datos de entrada'!BN10='Datos de entrada'!BI8,'Datos de entrada'!C132*'Datos de entrada'!C134*'Datos de entrada'!C133-0.7,"error"))) -> 797.3 | E22: =IF('Datos de entrada'!BN10='Datos de entrada'!BI6,'Datos de entrada'!D124*'Datos de entrada'!D126*('Datos de entrada'!D125-0.7),IF('Datos de entrada'!BN10='Datos de entrada'!BI7,0,IF('Datos de entrada'!BN10='Datos de entrada'!BI8,'Datos de entrada'!D132*'Datos de entrada'!D134*('Datos de entrada'!D133-0.7),"error"))) -> 268.8 | F22: =IF('Datos de entrada'!BN10='Datos de entrada'!BI6,'Datos de entrada'!E124*'Datos de entrada'!E126*('Datos de entrada'!E125-0.7),IF('Datos de entrada'!BN10='Datos de entrada'!BI7,0,IF('Datos de entrada'!BN10='Datos de entrada'!BI8,'Datos de entrada'!E132*'Datos de entrada'!E134*('Datos de entrada'!E133-0.7),"error"))) -> 268.8
B23: Impermeabilización (m2) | C23: 5.88 | D23: =+IF('Datos de entrada'!BN10='Datos de entrada'!BI6,'Datos de entrada'!C124*'Datos de entrada'!C126+'Datos de entrada'!C124*'Datos de entrada'!C125*2+'Datos de entrada'!C126*'Datos de entrada'!C125*2,IF('Datos de entrada'!BN10='Datos de entrada'!BI7,'Datos de entrada'!C117*'Datos de entrada'!C119+'Datos de entrada'!C117*'Datos de entrada'!C118*2+'Datos de entrada'!C119*'Datos de entrada'!C118*2,IF('Datos de entrada'!BN10='Datos de entrada'!BI8,'Datos de entrada'!C132*'Datos de entrada'!C133*2+'Datos de entrada'!C134*'Datos de entrada'!C133*2+'Datos de entrada'!C132*'Datos de entrada'!C134,"error"))) -> 513.5 | E23: =IF('Datos de entrada'!BN10='Datos de entrada'!BI6,'Datos de entrada'!D124*'Datos de entrada'!D126+'Datos de entrada'!D124*'Datos de entrada'!D125*2+'Datos de entrada'!D126*'Datos de entrada'!D125*2,IF('Datos de entrada'!BN10='Datos de entrada'!BI7,0,IF('Datos de entrada'!BN10='Datos de entrada'!BI8,'Datos de entrada'!D132*'Datos de entrada'!D133*2+'Datos de entrada'!D134*'Datos de entrada'!D133*2+'Datos de entrada'!D134*'Datos de entrada'!D132,"error"))) -> 486 | F23: =IF('Datos de entrada'!BN10='Datos de entrada'!BI6,'Datos de entrada'!E124*'Datos de entrada'!E126+'Datos de entrada'!E124*'Datos de entrada'!E125*2+'Datos de entrada'!E126*'Datos de entrada'!E125*2,IF('Datos de entrada'!BN10='Datos de entrada'!BI7,0,IF('Datos de entrada'!BN10='Datos de entrada'!BI8,'Datos de entrada'!E132*'Datos de entrada'!E133*2+'Datos de entrada'!E134*'Datos de entrada'!E133*2+'Datos de entrada'!E134*'Datos de entrada'!E132,"error"))) -> 486
B24: Total (USD) | D24: =+D22*$C$22+D23*$C$23 -> 9589.132 | E24: =+E22*$C$22+E23*$C$23 -> 5072.592 | F24: =+F22*$C$22+F23*$C$23 -> 5072.592
B27: INVERSIONES | C27: Costo Unitario | D27: Inversión (USD) | E27: Duración (años) | F27: Amortización (USD/año)
B28: Laguna 1 | D28: =+D24 -> 9589.132 | E28: 30 | F28: =+D28/E28 -> 319.6377333
B29: Laguna 2 | D29: =+E24 -> 5072.592 | E29: 30 | F29: 169.0864
B30: Laguna 3 | D30: =+F24 -> 5072.592 | E30: 30 | F30: 169.0864
B31: Sistema de Separación de Sólidos | C31: 10000 | D31: =+IF('Datos de entrada'!BK10='Datos de entrada'!BJ6,C31,0) -> 0 | E31: 10 | F31: 0
B32: Bomba estercolera | C32: 1000 | D32: =+IF('Datos de entrada'!BK10='Datos de entrada'!BJ6,C32,0) -> 0 | E32: 5 | F32: 0
B33: Obra Civil (pileta de recepción) | C33: 3000 | D33: =+IF('Datos de entrada'!BK10='Datos de entrada'!BJ6,C33,0) -> 0 | E33: 20 | F33: 0
B34: Playón depósito de sólidos | C34: 1500 | D34: =+IF('Datos de entrada'!BK10='Datos de entrada'!BJ6,12000/8.3,0) -> 0 | E34: 20 | F34: 0
B35: Instalación Electrica | C35: 1000 | D35: =+IF('Datos de entrada'!BK10='Datos de entrada'!BJ6,1000,0) -> 0 | E35: 10 | F35: 0
B36: TOTAL | D36: =+SUM(D28:D35) -> 19734.316 | F36: =+SUM(F28:F35) -> 657.8105333
F37: =+E17+F36 -> 8514.683609
B39: =+IF(F37<0,"Beneficio Total Anual (USD)","Costo total anual (USD)") -> Costo total anual (USD) | E39: =+IF(F37<0,-F37,F37) -> 8514.683609
B40: =+IF(F37<0,"Beneficio Total Anual (USD/V.O.)","Costo total anual (USD/V.O.)") -> Costo total anual (USD/V.O.) | E40: =+E39/'Datos de entrada'!C14 -> 24.32766745

Sheet Comparación de Resultados
B2: Ayuda para el correcto uso de la herramienta: Coloque un nombre de Simulación Actual y presione Guardar. Puede guardar hasta 4 simulaciones. Con los botones de Borrar puede limpiar simulaciones no deseadas.
B4: Simulación Actual | E4: Simulaciones guardadas para comparar
B5: Nombre | C5: Prueba2 | F5: =+C5 -> Prueba2 | G5: Prueba2 | H5: Prueba1
B6: Inversión (USD) | C6: =+'Costos y Resultados'!D36 -> 19734.316 | E6: =B6 -> Inversión (USD) | F6: =+C6 -> 19734.316 | G6: 19734.316 | H6: 19734.316
B8: Costo de aplicación de Líquidos | C8: =+'Costos y Resultados'!E6 -> 13298.1996 | E8: =B8 -> Costo de aplicación de Líquidos | F8: =+C8 -> 13298.1996 | G8: 13298.1996 | H8: 13298.1996
B9: Costo de aplicación de Sólidos | C9: =+'Costos y Resultados'!E7 -> 0 | E9: =B9 -> Costo de aplicación de Sólidos | F9: 0 | G9: 0 | H9: 0
B10: Costo de la Energía | C10: =+'Costos y Resultados'!E5 -> 0 | E10: =B10 -> Costo de la Energía | F10: 0 | G10: 0 | H10: 0
B11: Costos Operativos | C11: =+'Costos y Resultados'!E8 -> 13298.1996 | E11: =B11 -> Costos Operativos | F11: 13298.1996 | G11: 13298.1996 | H11: 13298.1996
B12: Ahorro en Fertilizante | C12: =+'Costos y Resultados'!E14 -> 5441.326529 | E12: =B12 -> Ahorro en Fertilizante | F12: 5441.326529 | G12: 5441.326529 | H12: 5441.326529
B13: Costo Operativo Neto | C13: =+C11-C12 -> 7856.873075 | E13: =+B13 -> Costo Operativo Neto | F13: 7856.873075 | G13: 7856.873075 | H13: 7856.873075
B14: Amortización | C14: =+'Costos y Resultados'!F36 -> 657.8105333 | E14: Amortización | F14: 657.8105333 | G14: 657.8105333 | H14: 657.8105333
B15: Costo Total | C15: =+C14+C13 -> 8514.683609 | E15: Costo Total | F15: 8514.683609 | G15: 8514.683609 | H15: 8514.683609

Sheet Bibliografía
B1: Bibliografía de referencia utilizada en el desarrollo de la herramienta
B3: Charlón, V., Taverna, M. A., Panigatti, C., & Gaggiotti, M. D. C. (2000). Cuantificación y caracterización de los efluentes generados en instalaciones de ordeño. Anuario 2000. EEA Rafaela.
B4: Chesterton R.N., Pfiffer D.U., Morris R.S., and Tanner C.M. 1989; Environmental and behavioural factors affecting the prevalence of foot lameness in New Zealand dairy herds – a case control study. New Zealand Veterinary Journal 37, 135-142, 1989
B5: Chesterton R.N. 2013. Lameness Management in Dairy Herds. Disponible en http://www.lamecow.co.nz/
B6: Nennich, T. D.; Harrison, J. H.; VanWieringen, L. M.; Meyer, D. 2005; Prediction of Manure and Nutrient Excretion from Dairy Cattle
B7: Nosetti, L., Herrero, M. A., Pol, M., Maldonado May, V., Iramain, M. S., & Flores, M. (2002). Cuantificacion y caracterizacion de agua y efluentes en establecimientos lecheros. I. Demanda de agua y manejo de efluentes. InVet, 4(1), 37-43
B8: Queensland effluent calculator, Version 4.6; 2007

Sheet Listados (hidden)
C5: Porcentaje de Retención de Sólidos | D5: Pérdidas por volatilización de nitrógeno | E5: Unidad de medida a graficar | F5: Indirecto de columna E
C6: 0.2 | D6: 0 | E6: m3/año | F6: Datos de entrada'!C99:C103
C7: =C6+1% -> 0.21 | D7: 0.3 | E7: m3/año max. | F7: Datos de entrada'!D99:D103
C8: =C7+1% -> 0.22 | D8: 0.4 | E8: l/dia | F8: Datos de entrada'!E99:E103
C9: 0.23 | E9: l/VO.dia | F9: Datos de entrada'!F99:F103
C10: 0.24
C11: 0.25
C12: 0.26
C13: =C12+1% -> 0.27
C14: 0.28
C15: 0.29
C16: 0.3
